fUST/lending_fUST_20240213
["ID","MTS","AMOUNT","RATE_DAILY","PERIOD"]
[313881098,1707769848626,-664.89,0.00027671,2]
[313881100,1707769848636,-500.0,0.00027671,2]
[313881102,1707769848646,-1508.7,0.00027671,2]
[313881104,1707769848655,-2793.66,0.00027671,2]
[313881106,1707769848664,-624.93,0.00027671,2]
[313881108,1707769848673,-500.34,0.00027671,2]
[313881110,1707769848682,-500.0,0.00027671,2]
[313881112,1707769848691,-628.31,0.00027671,2]
[313881114,1707769848700,-3814.9,0.00027671,2]
[313881116,1707769848709,-811.25,0.00027671,2]
[313881118,1707769848718,-649.6,0.00027671,2]
[313881120,1707769848728,-7767.88,0.00027671,2]
[313881122,1707769848737,-5659.82,0.00027671,2]
[313881124,1707769848746,-500.0,0.00027671,2]
[313881126,1707769848756,-4442.35,0.00027671,2]
[313881128,1707769848765,-500.0,0.00027671,2]
[313881130,1707769848774,-3538.04,0.00027671,2]
[313881132,1707769848783,-1195.93,0.00027671,2]
[313881134,1707769848792,-884.84,0.00027671,2]
[313881136,1707769848802,-500.49,0.00027671,2]
[313881138,1707769848811,-500.0,0.00027671,2]
[313881140,1707769848820,-500.0,0.00027671,2]
[313881142,1707769848829,-786.79,0.00027671,2]
[313881144,1707769848839,-500.0,0.00027671,2]
[313881146,1707769848848,-500.0,0.00027671,2]
[313881148,1707769848858,-500.0,0.00027671,2]
[313881150,1707769848868,-153.34627261,0.00027678,2]
[313881152,1707769848878,-161.4723146,0.0002768,2]
[313881154,1707769848889,-153.34627261,0.00027713,2]
[313881156,1707769848898,-200.0,0.0002772,2]
[313881158,1707769848907,-200.0,0.0002772,2]
[313881161,1707769848917,-200.0,0.0002772,2]
[313881163,1707769848926,-400.0,0.0002772,2]
[313881165,1707769848935,-200.0,0.0002772,2]
[313881166,1707769848944,-153.34627261,0.00027746,2]
[313881168,1707769848953,-478.25608286,0.00027755,2]
[313881170,1707769848962,-500.0,0.00027808,2]
[313881172,1707769848971,-150.92453773,0.00027924,2]
[313881174,1707769848981,-500.0,0.00027945,2]
[313881176,1707769848990,-620.74,0.00027945,2]
[313881178,1707769848999,-500.0,0.00027945,2]
[313881180,1707769849008,-664.89,0.00027945,2]
[313881182,1707769849018,-500.0,0.00027945,2]
[313881184,1707769849027,-1508.7,0.00027945,2]
[313881186,1707769849036,-2793.66,0.00027945,2]
[313881188,1707769849045,-624.93,0.00027945,2]
[313881190,1707769849053,-500.34,0.00027945,2]
[313881192,1707769849062,-500.0,0.00027945,2]
[313881194,1707769849071,-628.31,0.00027945,2]
[313881196,1707769849081,-3814.9,0.00027945,2]
[313881198,1707769849090,-811.25,0.00027945,2]
[313881200,1707769849099,-649.6,0.00027945,2]
[313881202,1707769849108,-7767.88,0.00027945,2]
[313881204,1707769849117,-5659.82,0.00027945,2]
[313881206,1707769849126,-500.0,0.00027945,2]
[313881208,1707769849135,-4442.35,0.00027945,2]
[313881210,1707769849144,-500.0,0.00027945,2]
[313881212,1707769849153,-3538.04,0.00027945,2]
[313881214,1707769849162,-1195.93,0.00027945,2]
[313881216,1707769849171,-884.84,0.00027945,2]
[313881218,1707769849181,-500.49,0.00027945,2]
[313881220,1707769849190,-500.0,0.00027945,2]
[313881222,1707769849199,-500.0,0.00027945,2]
[313881224,1707769849208,-786.79,0.00027945,2]
[313881226,1707769849217,-500.0,0.00027945,2]
[313881228,1707769849226,-500.0,0.00027945,2]
[313881230,1707769849235,-500.0,0.00027945,2]
[313881232,1707769849244,-154.8915759,0.00027988,2]
[313881234,1707769849253,-156.51705845,0.00027998,2]
[313881236,1707769849262,-160.0,0.00027999,10]
[313881238,1707769849271,-592225.28996333,0.00028,20]
[313881250,1707769849377,-17796.85044508,0.00028,20]
[313881253,1707769849389,-16327.21070606,0.00028,20]
[313881255,1707769849401,-3587.17259989,0.00028,20]
[313889268,1707771032045,-262.0748117,0.00019808,2]
[313889269,1707771032054,-1733.97919696,0.00019808,2]
[313889271,1707771032063,-247.4295258,0.00019809,2]
[313889273,1707771032073,-199.91116455,0.00019809,2]
[313889275,1707771032082,-2011.1647011,0.00019809,2]
[313889276,1707771032091,-679.0873968,0.0001981,2]
[313889278,1707771032100,-181.257943,0.00019811,2]
[313889279,1707771032109,-186.06886583,0.00020373,2]
[313889281,1707771032118,-1449.77490521,0.00020588,2]
[313889282,1707771032129,-575.83937696,0.00020588,2]
[313889283,1707771032139,-643.17733168,0.00020759,2]
[313889307,1707771038124,-821.43357407,0.00019807,2]
[313889308,1707771038133,-154.92253873,0.00019807,3]
[313889309,1707771038143,-679.0873968,0.00019807,2]
[313889310,1707771038152,-23392.54526467,0.00020759,2]
[313889317,1707771041271,-864.27740365,0.00020759,2]
[313889319,1707771041281,-136.4753663,0.00021616,7]
[313889320,1707771041293,-63.5246337,0.00021616,7]
[313889321,1707771041302,-326.73535811,0.00022,2]
[313889322,1707771041311,-427.63664462,0.00022,2]
[313889323,1707771041320,-871.13761387,0.00022605,2]
[313889358,1707771043829,-6505.22245132,0.00022605,2]
[313889360,1707771043839,-1721.15068187,0.00022605,2]
[313889362,1707771043848,-300.0,0.000229,10]
[313889363,1707771043857,-9976.71224854,0.00023,2]
[313889364,1707771043866,-1264.21341125,0.00023,2]
[313889365,1707771043875,-158.54511026,0.00023095,3]
[313889366,1707771043884,-274.68810879,0.00023124,2]
[313889368,1707771043892,-763.88031577,0.00023176,5]
[313889370,1707771043902,-280.0,0.00023778,7]
[313889372,1707771043910,-150.0,0.00024124,2]
[313889373,1707771043919,-300.0,0.000244,11]
[313889374,1707771043928,-500.55022621,0.0002447,5]
[313889375,1707771043939,-849.50694692,0.0002464,2]
[313889376,1707771043950,-7707.31,0.00024646,3]
[313889377,1707771043959,-10592.59,0.00024646,3]
[313889378,1707771043968,-8827.15,0.00024646,3]
[313889379,1707771043977,-720.63927314,0.00024655,2]
[313889380,1707771043986,-11257.3523744,0.00024656,2]
[313889381,1707771043995,-500.0,0.00024657,2]
[313889382,1707771044004,-500.0,0.00024657,2]
[313889383,1707771044013,-500.0,0.00024657,2]
[313889384,1707771044022,-1621.6,0.00024657,2]
[313889385,1707771044031,-500.0,0.00024657,2]
[313889386,1707771044041,-500.0,0.00024657,2]
[313889387,1707771044050,-500.0,0.00024657,2]
[313889388,1707771044059,-500.0,0.00024657,2]
[313889389,1707771044068,-500.0,0.00024657,2]
[313889390,1707771044077,-548.13,0.00024657,2]
[313889391,1707771044086,-500.0,0.00024657,2]
[313889392,1707771044095,-691.49,0.00024657,2]
[313889393,1707771044104,-2594.08,0.00024657,2]
[313889394,1707771044113,-500.0,0.00024657,2]
[313889395,1707771044122,-1280.43,0.00024657,2]
[313889396,1707771044131,-500.0,0.00024657,2]
[313889397,1707771044140,-500.0,0.00024657,2]
[313889398,1707771044150,-500.0,0.00024657,2]
[313889399,1707771044159,-500.0,0.00024657,2]
[313889400,1707771044168,-500.0,0.00024657,2]
[313889401,1707771044177,-724.39,0.00024657,2]
[313889402,1707771044187,-500.0,0.00024657,2]
[313889403,1707771044196,-500.0,0.00024657,2]
[313889404,1707771044205,-500.0,0.00024657,2]
[313889405,1707771044214,-500.0,0.00024657,2]
[313889406,1707771044223,-500.0,0.00024657,2]
[313889407,1707771044232,-500.0,0.00024657,2]
[313889408,1707771044241,-1748.49,0.00024657,2]
[313889409,1707771044250,-3560.28,0.00024657,2]
[313889410,1707771044259,-2036.08,0.00024657,2]
[313889411,1707771044268,-260.44112697,0.00024881,2]
[313889412,1707771044277,-1621.12719707,0.00024929,2]
[313889413,1707771044286,-500.0,0.00024931,2]
[313889414,1707771044295,-500.0,0.00024931,2]
[313889415,1707771044305,-500.0,0.00024931,2]
[313889416,1707771044314,-1621.6,0.00024931,2]
[313889417,1707771044324,-500.0,0.00024931,2]
[313889418,1707771044333,-500.0,0.00024931,2]
[313889419,1707771044342,-500.0,0.00024931,2]
[313889420,1707771044351,-500.0,0.00024931,2]
[313889421,1707771044360,-500.0,0.00024931,2]
[313889422,1707771044369,-548.13,0.00024931,2]
[313889423,1707771044379,-515.49,0.00024931,2]
[313889424,1707771044388,-691.49,0.00024931,2]
[313889425,1707771044397,-2594.08,0.00024931,2]
[313889426,1707771044406,-500.0,0.00024931,2]
[313889427,1707771044415,-1280.43,0.00024931,2]
[313889428,1707771044424,-500.0,0.00024931,2]
[313889429,1707771044433,-500.0,0.00024931,2]
[313889430,1707771044442,-500.0,0.00024931,2]
[313889431,1707771044451,-500.0,0.00024931,2]
[313889432,1707771044460,-500.0,0.00024931,2]
[313889433,1707771044470,-724.39,0.00024931,2]
[313889434,1707771044479,-201.61430334,0.00024931,2]
[313889435,1707771044488,-500.0,0.00024931,2]
[313889436,1707771044497,-500.0,0.00024931,2]
[313889437,1707771044506,-500.0,0.00024931,2]
[313889438,1707771044515,-500.0,0.00024931,2]
[313889439,1707771044524,-500.0,0.00024931,2]
[313889440,1707771044533,-1748.49,0.00024931,2]
[313889441,1707771044542,-3560.28,0.00024931,2]
[313889442,1707771044551,-2036.08,0.00024931,2]
[313889443,1707771044560,-5000.0,0.00024978,5]
[313889444,1707771044569,-500.0,0.00024999,2]
[313889445,1707771044578,-210.50654237,0.00024999,2]
[313889446,1707771044587,-500.0,0.00024999,2]
[313889447,1707771044596,-364.53138978,0.00024999,2]
[313889448,1707771044605,-7412.2245313,0.00025,2]
[313889449,1707771044614,-1451.54412615,0.00025,2]
[313889450,1707771044623,-154.92253873,0.00025,2]
[313889451,1707771044631,-335.81448194,0.00025,2]
[313889452,1707771044641,-20192.16287212,0.00025,4]
[313889453,1707771044650,-150.0,0.00025124,2]
[313889454,1707771044659,-203.54622682,0.000252,2]
[313889455,1707771044668,-651.85853467,0.00025203,2]
[313889456,1707771044677,-182.81,0.00025205,2]
[313889457,1707771044687,-500.0,0.00025205,2]
[313889458,1707771044697,-573.32,0.00025205,2]
[313889459,1707771044706,-1621.6,0.00025205,2]
[313889460,1707771044715,-500.0,0.00025205,2]
[313889461,1707771044724,-500.0,0.00025205,2]
[313889462,1707771044733,-500.0,0.00025205,2]
[313889463,1707771044742,-500.0,0.00025205,2]
[313889464,1707771044752,-500.0,0.00025205,2]
[313889465,1707771044760,-548.13,0.00025205,2]
[313889466,1707771044770,-691.49,0.00025205,2]
[313889467,1707771044780,-2594.08,0.00025205,2]
[313889468,1707771044789,-500.0,0.00025205,2]
[313889469,1707771044798,-1280.43,0.00025205,2]
[313889470,1707771044807,-500.0,0.00025205,2]
[313889471,1707771044816,-500.0,0.00025205,2]
[313889472,1707771044825,-500.0,0.00025205,2]
[313889473,1707771044834,-500.0,0.00025205,2]
[313889474,1707771044843,-724.39,0.00025205,2]
[313889475,1707771044852,-500.0,0.00025205,2]
[313889476,1707771044861,-500.0,0.00025205,2]
[313889477,1707771044870,-500.0,0.00025205,2]
[313889478,1707771044879,-500.0,0.00025205,2]
[313889479,1707771044888,-500.0,0.00025205,2]
[313889480,1707771044898,-1748.49,0.00025205,2]
[313889481,1707771044906,-3560.28,0.00025205,2]
[313889482,1707771044916,-2036.08,0.00025205,2]
[313889483,1707771044925,-250.0,0.00025478,2]
[313889484,1707771044935,-500.0,0.00025479,2]
[313889485,1707771045028,-1621.6,0.00025479,2]
[313889486,1707771045059,-500.0,0.00025479,2]
[313889487,1707771045069,-500.0,0.00025479,2]
[313889488,1707771045079,-500.0,0.00025479,2]
[313889489,1707771045088,-500.0,0.00025479,2]
[313889490,1707771045097,-500.0,0.00025479,2]
[313889491,1707771045107,-548.13,0.00025479,2]
[313889492,1707771045116,-691.49,0.00025479,2]
[313889493,1707771045126,-2594.08,0.00025479,2]
[313889494,1707771045136,-500.0,0.00025479,2]
[313889495,1707771045145,-1280.43,0.00025479,2]
[313889496,1707771045154,-500.0,0.00025479,2]
[313889497,1707771045163,-500.0,0.00025479,2]
[313889498,1707771045173,-500.0,0.00025479,2]
[313889499,1707771045182,-500.0,0.00025479,2]
[313889500,1707771045192,-724.39,0.00025479,2]
[313889501,1707771045201,-500.0,0.00025479,2]
[313889502,1707771045210,-500.0,0.00025479,2]
[313889503,1707771045219,-500.0,0.00025479,2]
[313889504,1707771045228,-500.0,0.00025479,2]
[313889505,1707771045238,-500.0,0.00025479,2]
[313889506,1707771045247,-1748.49,0.00025479,2]
[313889507,1707771045256,-3560.28,0.00025479,2]
[313889508,1707771045265,-2036.08,0.00025479,2]
[313889509,1707771045274,-500.0,0.00025753,2]
[313889510,1707771045283,-1621.6,0.00025753,2]
[313889511,1707771045292,-500.0,0.00025753,2]
[313889512,1707771045302,-500.0,0.00025753,2]
[313889513,1707771045311,-500.0,0.00025753,2]
[313889514,1707771045320,-500.0,0.00025753,2]
[313889515,1707771045329,-500.0,0.00025753,2]
[313889516,1707771045338,-548.13,0.00025753,2]
[313889517,1707771045347,-691.49,0.00025753,2]
[313889518,1707771045356,-2594.08,0.00025753,2]
[313889519,1707771045365,-500.0,0.00025753,2]
[313889520,1707771045374,-1280.43,0.00025753,2]
[313889521,1707771045384,-500.0,0.00025753,2]
[313889522,1707771045393,-500.0,0.00025753,2]
[313889523,1707771045403,-500.0,0.00025753,2]
[313889524,1707771045411,-500.0,0.00025753,2]
[313889525,1707771045421,-724.39,0.00025753,2]
[313889526,1707771045430,-500.0,0.00025753,2]
[313889527,1707771045438,-500.0,0.00025753,2]
[313889528,1707771045448,-500.0,0.00025753,2]
[313889529,1707771045457,-500.0,0.00025753,2]
[313889530,1707771045466,-500.0,0.00025753,2]
[313889531,1707771045476,-1748.49,0.00025753,2]
[313889532,1707771045485,-3560.28,0.00025753,2]
[313889533,1707771045494,-2036.08,0.00025753,2]
[313889534,1707771045503,-631.47534735,0.00025872,2]
[313889536,1707771045512,-320.62310632,0.000259,2]
[313889538,1707771045521,-300.0,0.000259,12]
[313889539,1707771045530,-154.92253873,0.00026,7]
[313889540,1707771045539,-538.7494051,0.00026,2]
[313889541,1707771045548,-500.0,0.00026027,2]
[313889542,1707771045557,-1621.6,0.00026027,2]
[313889543,1707771045566,-500.0,0.00026027,2]
[313889545,1707771045575,-500.0,0.00026027,2]
[313889547,1707771045585,-500.0,0.00026027,2]
[313889549,1707771045593,-500.0,0.00026027,2]
[313889551,1707771045602,-245.56015616,0.00026027,2]
[313889552,1707771045611,-548.13,0.00026027,2]
[313889553,1707771045620,-691.49,0.00026027,2]
[313889554,1707771045629,-2594.08,0.00026027,2]
[313889555,1707771045638,-500.0,0.00026027,2]
[313889556,1707771045647,-1280.43,0.00026027,2]
[313889557,1707771045657,-500.0,0.00026027,2]
[313889558,1707771045666,-506.21289854,0.00026027,2]
[313889559,1707771045676,-500.0,0.00026027,2]
[313889561,1707771045686,-500.0,0.00026027,2]
[313889563,1707771045695,-724.39,0.00026027,2]
[313889564,1707771045703,-500.0,0.00026027,2]
[313889566,1707771045713,-500.0,0.00026027,2]
[313889568,1707771045722,-500.0,0.00026027,2]
[313889569,1707771045730,-500.0,0.00026027,2]
[313889571,1707771045740,-500.0,0.00026027,2]
[313889574,1707771045749,-1748.49,0.00026027,2]
[313889576,1707771045758,-3560.28,0.00026027,2]
[313889578,1707771045767,-2036.08,0.00026027,2]
[313889580,1707771045777,-153.34627261,0.00026042,2]
[313889581,1707771045786,-150.0,0.00026124,2]
[313889583,1707771045795,-391.0,0.00026156,15]
[313889586,1707771045804,-500.0,0.00026163,2]
[313889589,1707771045813,-2000.0,0.00026204,2]
[313889591,1707771045822,-500.0,0.00026301,2]
[313889592,1707771045831,-1621.6,0.00026301,2]
[313889594,1707771045840,-500.0,0.00026301,2]
[313889596,1707771045849,-500.0,0.00026301,2]
[313889598,1707771045858,-500.0,0.00026301,2]
[313889599,1707771045867,-500.0,0.00026301,2]
[313889600,1707771045876,-548.13,0.00026301,2]
[313889602,1707771045884,-691.49,0.00026301,2]
[313889603,1707771045893,-2594.08,0.00026301,2]
[313889605,1707771045902,-500.0,0.00026301,2]
[313889606,1707771045910,-1280.43,0.00026301,2]
[313889608,1707771045919,-500.0,0.00026301,2]
[313889610,1707771045928,-500.0,0.00026301,2]
[313889613,1707771045939,-338.08,0.00026301,2]
[313889614,1707771045947,-724.39,0.00026301,2]
[313889617,1707771045959,-500.0,0.00026301,2]
[313889619,1707771045969,-288.28325357,0.00026301,2]
[313889621,1707771045978,-500.0,0.00026301,2]
[313889623,1707771045987,-500.0,0.00026301,2]
[313889625,1707771045997,-500.0,0.00026301,2]
[313889626,1707771046007,-1748.49,0.00026301,2]
[313889628,1707771046016,-3560.28,0.00026301,2]
[313889630,1707771046026,-2036.08,0.00026301,2]
[313889632,1707771046035,-153.34627261,0.00026506,2]
[313889635,1707771046046,-500.0,0.00026575,2]
[313889637,1707771046055,-1621.6,0.00026575,2]
[313889639,1707771046065,-500.0,0.00026575,2]
[313889641,1707771046074,-500.0,0.00026575,2]
[313889643,1707771046084,-500.0,0.00026575,2]
[313889646,1707771046093,-500.0,0.00026575,2]
[313889648,1707771046102,-548.13,0.00026575,2]
[313889650,1707771046112,-691.49,0.00026575,2]
[313889652,1707771046121,-2594.08,0.00026575,2]
[313889655,1707771046131,-500.0,0.00026575,2]
[313889657,1707771046140,-1280.43,0.00026575,2]
[313889660,1707771046150,-500.0,0.00026575,2]
[313889661,1707771046160,-500.0,0.00026575,2]
[313889664,1707771046169,-724.39,0.00026575,2]
[313889665,1707771046178,-500.0,0.00026575,2]
[313889667,1707771046187,-500.0,0.00026575,2]
[313889670,1707771046197,-500.0,0.00026575,2]
[313889671,1707771046206,-500.0,0.00026575,2]
[313889673,1707771046215,-1748.49,0.00026575,2]
[313889676,1707771046224,-3560.28,0.00026575,2]
[313889680,1707771046234,-2036.08,0.00026575,2]
[313889682,1707771046243,-8683.55680084,0.000266,4]
[313889685,1707771046252,-4036.76039031,0.00026847,2]
[313889688,1707771046261,-2420.10703397,0.00026848,2]
[313889691,1707771046270,-259.04305647,0.00026848,2]
[313889695,1707771046280,-500.0,0.00026849,2]
[313889698,1707771046292,-1621.6,0.00026849,2]
[313889702,1707771046307,-500.0,0.00026849,2]
[313889706,1707771046318,-500.0,0.00026849,2]
[313889709,1707771046330,-434.90323707,0.00026849,2]
[313889712,1707771046341,-500.0,0.00026849,2]
[313889716,1707771046352,-548.13,0.00026849,2]
[313889720,1707771046363,-691.49,0.00026849,2]
[313889723,1707771046372,-2594.08,0.00026849,2]
[313889726,1707771046382,-500.0,0.00026849,2]
[313889729,1707771046390,-1280.43,0.00026849,2]
[313889732,1707771046401,-500.0,0.00026849,2]
[313889735,1707771046410,-500.0,0.00026849,2]
[313889738,1707771046421,-724.39,0.00026849,2]
[313889742,1707771046431,-500.0,0.00026849,2]
[313889745,1707771046442,-500.0,0.00026849,2]
[313889749,1707771046453,-500.0,0.00026849,2]
[313889752,1707771046463,-500.0,0.00026849,2]
[313889755,1707771046473,-1748.49,0.00026849,2]
[313889758,1707771046484,-3560.28,0.00026849,2]
[313889761,1707771046494,-2036.08,0.00026849,2]
[313889765,1707771046505,-191.30243318,0.000269,2]
[313889768,1707771046516,-156.01359364,0.00027,2]
[313889772,1707771046527,-3062.68810289,0.00027,2]
[313889775,1707771046536,-2634.22081541,0.00027,4]
[313889778,1707771046546,-10000.0,0.00027,4]
[313889781,1707771046556,-15572.65476155,0.00027,4]
[313889784,1707771046567,-792.50463375,0.00027,4]
[313889787,1707771046577,-415.77215257,0.00027123,2]
[313889790,1707771046587,-1621.6,0.00027123,2]
[313889793,1707771046597,-500.0,0.00027123,2]
[313889796,1707771046608,-500.0,0.00027123,2]
[313889800,1707771046619,-500.0,0.00027123,2]
[313889804,1707771046629,-548.13,0.00027123,2]
[313889805,1707771046639,-691.49,0.00027123,2]
[313889807,1707771046650,-2594.08,0.00027123,2]
[313889808,1707771046661,-500.0,0.00027123,2]
[313889809,1707771046671,-1280.43,0.00027123,2]
[313889810,1707771046682,-500.0,0.00027123,2]
[313889811,1707771046694,-500.0,0.00027123,2]
[313889812,1707771046704,-724.39,0.00027123,2]
[313889813,1707771046714,-500.0,0.00027123,2]
[313889814,1707771046723,-500.0,0.00027123,2]
[313889815,1707771046733,-500.0,0.00027123,2]
[313889816,1707771046745,-500.0,0.00027123,2]
[313889817,1707771046756,-1748.49,0.00027123,2]
[313889818,1707771046768,-3560.28,0.00027123,2]
[313889819,1707771046777,-2036.08,0.00027123,2]
[313889820,1707771046787,-150.0,0.00027124,2]
[313889821,1707771046799,-620.57376737,0.00027166,2]
[313889822,1707771046810,-500.0,0.00027397,2]
[313889823,1707771046820,-500.0,0.00027397,2]
[313889824,1707771046830,-500.0,0.00027397,2]
[313889825,1707771046840,-500.0,0.00027397,2]
[313889826,1707771046850,-500.0,0.00027397,2]
[313889827,1707771046861,-562.33473585,0.00027397,2]
[313889828,1707771046870,-1621.6,0.00027397,2]
[313889829,1707771046881,-500.0,0.00027397,2]
[313889830,1707771046892,-505.47,0.00027397,2]
[313889831,1707771046902,-500.0,0.00027397,2]
[313889832,1707771046912,-548.13,0.00027397,2]
[313889833,1707771046924,-691.49,0.00027397,2]
[313889834,1707771046935,-2594.08,0.00027397,2]
[313889835,1707771046947,-222.30625137,0.00027397,2]
[313889836,1707771046960,-1280.43,0.00027397,2]
[313889837,1707771046971,-500.0,0.00027397,2]
[313889838,1707771046982,-155.0,0.00027397,2]
[313889839,1707771046993,-503.87262693,0.00027397,2]
[313889840,1707771047005,-724.39,0.00027397,2]
[313889841,1707771047015,-500.0,0.00027397,2]
[313889842,1707771047025,-500.0,0.00027397,2]
[313889843,1707771047035,-500.0,0.00027397,2]
[313889844,1707771047045,-500.0,0.00027397,2]
[313889845,1707771047054,-500.0,0.00027397,2]
[313889846,1707771047064,-1748.49,0.00027397,2]
[313889847,1707771047074,-3560.28,0.00027397,2]
[313889848,1707771047084,-2036.08,0.00027397,2]
[313889849,1707771047096,-150.1,0.00027397,2]
[313889850,1707771047107,-300.0,0.000274,13]
[313889851,1707771047117,-500.0,0.00027534,2]
[313889852,1707771047128,-50000.0,0.00027535,5]
[313889853,1707771047138,-1621.6,0.00027671,2]
[313889854,1707771047149,-500.0,0.00027671,2]
[313889855,1707771047160,-500.0,0.00027671,2]
[313889856,1707771047170,-548.13,0.00027671,2]
[313889857,1707771047180,-691.49,0.00027671,2]
[313889858,1707771047191,-2594.08,0.00027671,2]
[313889859,1707771047201,-1280.43,0.00027671,2]
[313889860,1707771047211,-500.0,0.00027671,2]
[313889861,1707771047221,-724.39,0.00027671,2]
[313889862,1707771047231,-500.0,0.00027671,2]
[313889863,1707771047242,-500.0,0.00027671,2]
[313889864,1707771047252,-500.0,0.00027671,2]
[313889865,1707771047262,-500.0,0.00027671,2]
[313889866,1707771047273,-500.0,0.00027671,2]
[313889867,1707771047283,-1748.49,0.00027671,2]
[313889868,1707771047293,-3560.28,0.00027671,2]
[313889869,1707771047304,-2036.08,0.00027671,2]
[313889870,1707771047314,-307.4096268,0.00027707,2]
[313889871,1707771047324,-310.3971413,0.00027707,2]
[313889872,1707771047334,-500.0,0.00027808,2]
[313889873,1707771047344,-716.12791525,0.00027945,3]
[313889874,1707771047355,-1621.6,0.00027945,2]
[313889875,1707771047366,-500.0,0.00027945,2]
[313889876,1707771047376,-500.0,0.00027945,2]
[313889877,1707771047386,-548.13,0.00027945,2]
[313889878,1707771047396,-691.49,0.00027945,2]
[313889879,1707771047407,-2594.08,0.00027945,2]
[313889880,1707771047417,-1280.43,0.00027945,2]
[313889881,1707771047427,-500.0,0.00027945,2]
[313889882,1707771047437,-724.39,0.00027945,2]
[313889883,1707771047447,-500.0,0.00027945,2]
[313889884,1707771047457,-500.0,0.00027945,2]
[313889885,1707771047468,-500.0,0.00027945,2]
[313889886,1707771047478,-500.0,0.00027945,2]
[313889887,1707771047489,-500.0,0.00027945,2]
[313889888,1707771047499,-1748.49,0.00027945,2]
[313889889,1707771047509,-3560.28,0.00027945,2]
[313889890,1707771047519,-2036.08,0.00027945,2]
[313889891,1707771047529,-236.36295004,0.00027999,10]
[313889892,1707771047539,-500.0,0.00027999,2]
[313889893,1707771047550,-500.0,0.00027999,2]
[313889894,1707771047559,-355.71232122,0.00027999,2]
[313889895,1707771047569,-500.0,0.00027999,2]
[313889896,1707771047580,-335.93295832,0.00027999,2]
[313889897,1707771047590,-500.0,0.00027999,2]
[313889898,1707771047599,-634.35883011,0.00027999,2]
[313889899,1707771047609,-454.77431557,0.00027999,2]
[313889900,1707771047619,-500.0,0.00027999,2]
[313889901,1707771047629,-500.0,0.00027999,2]
[313889902,1707771047639,-500.0,0.00027999,2]
[313889903,1707771047649,-164.15452638,0.00027999,2]
[313889904,1707771047660,-277.41468641,0.00027999,2]
[313889905,1707771047669,-500.0,0.00027999,2]
[313889906,1707771047812,-500.0,0.00027999,2]
[313889907,1707771047824,-500.0,0.00027999,2]
[313889908,1707771047833,-500.0,0.00027999,2]
[313889909,1707771047842,-500.0,0.00027999,2]
[313889910,1707771047852,-500.0,0.00027999,2]
[313889911,1707771047861,-500.0,0.00027999,2]
[313889912,1707771047870,-265.43201632,0.00027999,2]
[313889913,1707771047880,-500.0,0.00027999,2]
[313889914,1707771047890,-500.0,0.00027999,2]
[313889915,1707771047899,-396.62295068,0.00027999,2]
[313889916,1707771047909,-47753.40640118,0.00028,20]
[313889917,1707771047987,-1543.94050622,0.00028,20]
[313889918,1707771048000,-310.0604618,0.00028,20]
[313889919,1707771048040,-199.91116455,0.00024645,2]
[313889920,1707771048049,-7375.0,0.00024647,3]
[313889921,1707771048059,-9516.34478404,0.00028,20]